bitfinex-derivatives/quotes_ETHF0:USTF0_20230101
["timestamp","ask_amount","ask_price","bid_price","bid_amount"]
[1672611326073,9.0,1203.4,1203.1,9.48700046]
[1672611327126,9.002,1203.4,1203.1,9.48700046]
[1672611334272,9.0,1203.4,1203.1,9.48500046]
[1672611335319,9.0,1203.4,1203.1,9.48700046]
[1672611336373,9.002,1203.4,1203.1,9.48700046]
[1672611342571,9.002,1203.4,1203.1,8.307]
[1672611352884,0.002,1203.4,1203.1,8.307]
[1672611354662,9.0,1203.3,1203.1,8.307]
[1672611364241,9.0,1203.3,1203.1,8.305]
[1672611365298,9.0,1203.3,1203.1,8.307]
[1672611366352,9.002,1203.3,1203.1,8.307]
[1672611431731,9.002,1203.3,1203.1,8.29959106]
[1672611439099,9.0,1203.3,1203.0,15.1644]
[1672611439304,9.0,1203.3,1203.0,1.1814]
[1672611440149,9.0,1203.3,1203.1,0.002]
[1672611441198,9.002,1203.3,1203.1,0.002]
[1672611457795,0.002,1203.3,1203.1,0.002]
[1672611469254,9.0,1203.4,1203.0,1.1814]
[1672611470305,9.0,1203.4,1203.1,0.002]
[1672611471357,0.002,1203.3,1203.1,0.002]
[1672611520431,9.0,1203.2,1203.1,0.002]
[1672611529266,9.0,1203.2,1202.9,8.305]
[1672611530211,9.0,1203.2,1203.1,0.002]
[1672611530413,9.0,1203.4,1203.1,0.002]
[1672611530733,0.0011003,1203.1,1202.9,9.4864]
[1672611601478,0.0011003,1203.1,1202.9,9.48322119]
[1672611633447,2.7355003,1203.1,1202.9,9.48322119]
[1672611652465,2.7344,1203.1,1202.9,9.48322119]
[1672611678852,2.7344,1203.1,1202.9,9.48064509]
[1672611745407,2.7344,1203.1,1202.9,9.47629694]
[1672611753409,2.72798915,1203.1,1202.9,9.47629694]
[1672611776218,2.72798915,1203.1,1202.9,8.29489694]
[1672611832361,2.72798915,1203.1,1202.9,8.28871849]
[1672611905944,2.72798915,1203.1,1202.9,8.28126337]
[1672611943886,2.72538287,1203.1,1202.9,8.28126337]
[1672612008454,2.72538287,1203.1,1202.8,13.983]
[1672612008657,2.72538287,1203.1,1202.7,8.311]
[1672612012864,2.72538287,1203.1,1202.7,8.30812364]
[1672612077731,2.72538287,1203.1,1202.6,23.4754]
[1672612090344,3.90678287,1203.1,1202.6,22.294]
[1672612090772,3.90678287,1203.1,1202.6,22.28768226]
[1672612091823,3.90678287,1203.1,1202.6,8.311]
[1672612119148,2.72538287,1203.1,1202.6,9.4924]
[1672612157107,2.72538287,1203.1,1202.6,9.48940428]
[1672612221165,2.72538287,1203.1,1202.7,5.0]
[1672612229350,2.72538287,1203.1,1202.7,4.99673034]
[1672612274352,2.7179908,1203.1,1202.7,4.99673034]
[1672612287481,5.0,1203.0,1202.7,4.99673034]
[1672612288731,2.7179908,1203.1,1202.7,4.99673034]
[1672612329095,3.0,1203.0,1202.7,4.99673034]
[1672612329296,2.7179908,1203.1,1202.7,4.99673034]
[1672612341806,2.7179908,1203.1,1202.7,4.99046437]
[1672612362719,2.71570995,1203.1,1202.7,4.99046437]
[1672612432836,2.71570995,1203.1,1202.7,4.98324375]
[1672612506823,2.71570995,1203.1,1202.7,4.9805911]
[1672612510189,2.71570995,1203.1,1202.7,13.2915911]
[1672612527526,2.71570995,1203.1,1202.7,4.9805911]
[1672612562535,2.71570995,1203.1,1202.7,13.2915911]
[1672612577880,2.71570995,1203.1,1202.7,13.28478523]
[1672612612028,2.71570995,1203.1,1202.7,4.97378523]
[1672612631484,2.71570995,1203.1,1202.7,13.28478523]
[1672612646820,2.71570995,1203.1,1202.7,4.97378523]
[1672612647667,2.71570995,1203.1,1202.7,13.28478523]
[1672612648195,2.71570995,1203.1,1202.7,4.97378523]
[1672612649559,2.71570995,1203.1,1202.7,13.28478523]
[1672612650611,2.71570995,1203.1,1202.7,13.2807625]
[1672612656916,2.71570995,1203.1,1202.7,4.9697625]
[1672612695477,2.71570995,1203.1,1202.7,13.2807625]
[1672612726702,2.71570995,1203.1,1202.7,13.27682735]
[1672612799847,2.71570995,1203.1,1202.7,13.27391268]
[1672612820864,2.70771412,1203.1,1202.7,13.27391268]
[1672612828329,2.70771412,1203.1,1202.7,4.96291268]
[1672612828532,2.70771412,1203.1,1202.7,13.27391268]
[1672612892261,2.70771412,1203.1,1202.7,13.26974915]
[1672612964601,2.70771412,1203.1,1202.7,13.26425994]
[1672612993834,11.70771412,1203.1,1202.7,13.26425994]
[1672613030101,11.70771412,1203.1,1202.7,13.25828897]
[1672613050185,11.70771412,1203.1,1202.7,4.94728897]
[1672613050492,9.0,1202.9,1202.7,4.94728897]
[1672613100953,9.0,1202.9,1202.7,4.94116888]
[1672613109996,9.0,1203.0,1202.7,4.94116888]
[1672613110306,3.88911412,1203.1,1202.7,4.94116888]
[1672613110724,9.0,1203.0,1202.7,4.94116888]
[1672613185758,9.0,1203.0,1202.7,4.93320303]
[1672613238421,9.0,1203.0,1202.7,13.24420303]
[1672613262813,9.0,1203.0,1202.7,13.23964012]
[1672613294564,9.0,1203.0,1202.7,4.92864012]
[1672613294775,9.0,1203.0,1202.7,13.23964012]
[1672613295616,9.0,1203.0,1202.7,4.92864012]
[1672613295928,9.0,1203.0,1202.7,13.23964012]
[1672613337443,9.0,1203.0,1202.7,4.92864012]
[1672613337758,9.0,1203.0,1202.7,13.23964012]
[1672613338496,9.0,1203.0,1202.7,4.92864012]
[1672613339546,9.0,1203.0,1202.7,13.23964012]
[1672613341960,9.0,1203.0,1202.7,13.2330035]
[1672613344483,9.0,1203.0,1202.7,4.9220035]
[1672613345006,9.0,1203.0,1202.7,13.2330035]
[1672613348480,9.0,1203.0,1202.7,4.9220035]
[1672613348686,9.0,1203.0,1202.7,13.2330035]
[1672613362564,9.0,1203.0,1202.7,4.9220035]
[1672613362877,9.0,1203.0,1202.7,13.2330035]
[1672613364561,9.0,1203.0,1202.7,4.9220035]
[1672613365609,9.0,1203.0,1202.7,13.2330035]
[1672613376851,9.0,1203.0,1202.7,4.9220035]
[1672613382947,3.88911412,1203.1,1202.7,4.9220035]
[1672613384423,9.0,1202.9,1202.7,4.9220035]
[1672613419316,3.88911412,1203.1,1202.7,4.9220035]
[1672613419533,9.0,1202.9,1202.7,4.9220035]
[1672613456225,9.0,1202.9,1202.7,4.91719023]
[1672613472936,3.0,1202.8,1202.6,4.5]
[1672613473246,9.0,1202.7,1202.6,4.5]
[1672613476930,9.0,1202.7,1202.6,3.0]
[1672613479558,9.0,1202.9,1202.6,3.0]
[1672613486284,3.5,1203.0,1202.6,3.0]
[1672613486492,4.5,1203.0,1202.6,3.0]
[1672613486702,9.0,1202.9,1202.6,3.0]
[1672613496687,9.0,1202.7,1202.6,3.0]
[1672613513717,9.0,1202.7,1202.6,2.9244]
[1672613513921,9.0,1202.7,1202.4,4.5]
[1672613539356,3.5,1202.6,1202.3,15.1644]
[1672613539569,9.0,1202.5,1202.1,13.983]
[1672613539993,9.0,1202.5,1202.2,4.5]
[1672613541880,2.0,1202.4,1202.2,4.5]
[1672613542401,4.5,1202.4,1202.2,4.5]
[1672613552097,2.0,1202.4,1202.2,4.5]
[1672613552838,2.5,1202.4,1202.2,4.5]
[1672613553582,4.5,1202.4,1202.2,4.5]
[1672613554547,9.0,1202.5,1202.2,4.5]
[1672613556636,4.6814,1202.6,1202.2,4.5]
[1672613556844,5.6814,1202.6,1202.2,4.5]
[1672613564933,9.0,1202.4,1202.1,13.983]
[1672613565133,9.0,1202.4,1201.9,1.1814]
[1672613565134,3.5,1202.3,1202.0,4.5]
[1672613565450,9.0,1202.2,1202.0,4.5]
[1672613568074,9.0,1202.2,1201.9,13.983]
[1672613568286,9.0,1202.2,1201.8,4.5]
[1672613572904,4.5,1202.1,1201.8,4.5]
[1672613573546,9.0,1202.0,1201.8,4.5]
[1672613576778,9.0,1202.0,1201.7,13.983]
[1672613576991,9.0,1201.8,1201.6,4.5]
[1672613625132,9.0,1201.8,1201.6,4.4972766]
[1672613681160,18.0893366,1202.1,1201.6,4.4972766]
[1672613685360,9.0,1201.8,1201.6,4.4972766]
[1672613718047,9.0,1201.8,1201.5,13.983]
[1672613718254,3.5,1201.7,1201.3,15.1644]
[1672613718571,3.5,1201.7,1201.4,4.5]
[1672613719833,10.1814,1201.8,1201.4,4.5]
[1672613720347,9.0,1201.6,1201.4,4.5]
[1672613721299,2.5,1201.5,1201.4,4.5]
[1672613721513,9.0,1201.6,1201.4,4.5]
[1672613721724,9.0,1201.6,1201.1,13.983]
[1672613722139,4.5,1201.5,1201.2,4.5]
[1672613723192,9.0,1201.4,1201.2,4.5]
[1672613739195,9.0,1201.4,1201.2,12.811]
[1672613744442,13.4525,1201.7,1201.2,12.811]
[1672613744658,13.4525,1201.7,1201.2,13.9924]
[1672613748022,4.4525,1201.7,1201.2,13.9924]
[1672613749392,9.0,1201.9,1201.4,8.311]
[1672613749590,9.0,1201.9,1201.5,11.811]
[1672613750023,18.2908366,1202.1,1201.5,11.811]
[1672613750229,10.1814,1202.1,1201.5,12.9924]
[1672613750434,9.0,1202.1,1201.5,12.9924]
[1672613750652,9.0,1202.1,1201.7,8.311]
[1672613759251,9.0,1202.1,1201.7,8.306107]
[1672613807291,5.758,1202.2,1201.7,8.306107]
[1672613807501,5.0,1202.1,1201.7,8.306107]
[1672613821582,14.758,1202.2,1201.7,8.306107]
[1672613821798,2.0,1202.1,1201.7,8.306107]
[1672613822008,4.5,1202.1,1201.7,8.306107]
[1672613822218,14.758,1202.2,1201.7,8.306107]
[1672613822421,2.0,1202.1,1201.7,8.306107]
[1672613822633,5.0,1202.1,1201.7,8.306107]
[1672613822846,2.0,1202.1,1201.7,8.306107]
[1672613823057,14.758,1202.2,1201.7,8.306107]
[1672613823267,3.5,1202.1,1201.7,8.306107]
[1672613823482,5.0,1202.1,1201.7,8.306107]
[1672613823688,3.5,1202.1,1201.7,8.306107]
[1672613823899,5.0,1202.1,1201.7,8.306107]
[1672613825375,14.758,1202.2,1201.7,8.306107]
[1672613825790,3.0,1202.1,1201.7,8.306107]
[1672613826002,5.0,1202.1,1201.7,8.306107]
[1672613826315,3.0,1202.1,1201.7,8.306107]
[1672613826636,5.0,1202.1,1201.7,8.306107]
[1672613845029,5.0,1202.1,1201.6,5.6814]
[1672613845237,5.0,1202.1,1201.6,13.9924]
[1672613867206,1.653,1201.8,1201.6,13.9924]
[1672613874050,1.666,1201.8,1201.6,13.9924]
[1672613874465,1.666,1201.8,1201.6,12.80479398]
[1672613884460,1.65835585,1201.8,1201.6,12.80479398]
[1672613892235,1.65835585,1201.8,1201.6,4.49379398]
[1672613892445,1.657,1201.7,1201.6,4.49379398]
[1672613903914,3.303,1201.7,1201.6,4.49379398]
[1672613949107,3.303,1201.7,1201.6,4.4874382]
[1672613976449,3.303,1201.7,1201.6,12.7984382]
[1672613993888,1.659,1201.7,1201.6,12.7984382]
[1672614001248,1.659,1201.7,1201.6,4.4874382]
[1672614003976,3.319,1201.7,1201.6,4.4874382]
[1672614014380,3.319,1201.7,1201.6,4.4811896]
[1672614049486,3.319,1201.7,1201.6,12.7921896]
[1672614088480,3.319,1201.7,1201.6,12.78675823]
[1672614104557,3.319,1201.7,1201.6,4.47575823]
[1672614113486,3.319,1201.7,1201.4,4.5]
[1672614113696,1.66,1201.5,1201.4,4.5]
[1672614123904,1.661,1201.5,1201.4,4.5]
[1672614143873,1.66,1201.5,1201.4,4.5]
[1672614182764,1.66,1201.5,1201.4,4.49299072]
[1672614184023,1.65,1201.5,1201.4,4.49299072]
[1672614193898,1.661,1201.5,1201.4,4.49299072]
[1672614206196,3.317,1201.5,1201.4,4.49299072]
[1672614206406,6.817,1201.5,1201.4,4.49299072]
[1672614212612,3.317,1201.5,1201.4,4.49299072]
[1672614212924,6.817,1201.5,1201.4,4.49299072]
[1672614213875,3.317,1201.5,1201.4,4.49299072]
[1672614214403,6.817,1201.5,1201.4,4.49299072]
[1672614214719,6.817,1201.5,1201.3,3.5]
[1672614214928,3.326,1201.4,1201.3,3.5]
[1672614221860,4.983,1201.4,1201.3,3.5]
[1672614248143,3.323,1201.4,1201.3,3.5]
[1672614253811,14.961,1201.4,1201.1,13.983]
[1672614254022,3.32,1201.2,1201.0,4.0]
[1672614254226,3.332,1201.1,1201.0,4.0]
[1672614255390,3.332,1201.1,1201.0,3.99411279]
[1672614264428,3.32851915,1201.1,1201.0,3.99411279]
[1672614268314,3.32851915,1201.1,1200.9,12.311]
[1672614268634,1.661,1201.0,1200.9,12.311]
[1672614278611,1.661,1201.0,1200.9,4.0]
[1672614301325,3.332,1200.9,1200.7,13.983]
[1672614301537,3.322,1200.8,1200.7,4.0]
[1672614302379,1.661,1200.8,1200.7,4.0]
[1672614311210,1.661,1200.8,1200.7,12.311]
[1672614321410,1.654,1200.8,1200.7,12.311]
[1672614321626,1.657,1201.0,1200.7,13.977]
[1672614329407,5.1814,1201.2,1200.7,12.311]
[1672614329408,3.315,1200.9,1200.7,12.311]
[1672614332880,1.659,1200.9,1200.7,12.311]
[1672614344025,1.649,1200.9,1200.7,12.311]
[1672614363897,1.649,1200.9,1200.7,13.961]
[1672614372212,1.666,1200.9,1200.7,13.961]
[1672614388090,1.666,1200.9,1200.7,13.95897369]
[1672614393976,1.661,1201.0,1200.7,13.95997369]
[1672614403956,1.653,1201.0,1200.7,13.96997369]
[1672614409526,1.66,1200.9,1200.7,12.30897369]
[1672614421834,1.657,1200.8,1200.7,12.30897369]
[1672614461134,1.657,1200.8,1200.7,12.30595543]
[1672614468168,6.076,1201.3,1200.7,17.28495543]
[1672614468382,1.649,1201.4,1201.1,1.651]
[1672614468589,14.0114366,1201.7,1200.9,22.294]
[1672614468804,4.0,1201.6,1201.1,8.311]
[1672614469015,1.666,1201.7,1201.1,8.311]
[1672614469230,1.666,1201.7,1201.5,1.661]
[1672614469854,1.666,1201.7,1201.6,12.311]
[1672614472802,1.666,1201.7,1201.6,4.0]
[1672614473006,1.65,1201.7,1201.6,4.0]
[1672614473220,1.65,1201.7,1201.6,12.311]
[1672614473855,1.65,1201.7,1201.6,4.0]
[1672614478589,1.65,1201.7,1201.6,12.311]
[1672614482815,1.661,1201.9,1201.6,13.977]
[1672614483316,1.653,1202.0,1201.8,9.977]
[1672614483744,1.653,1202.1,1201.9,9.977]
[1672614487836,1.661,1202.0,1201.7,8.311]
[1672614488049,1.65,1201.8,1201.7,8.311]
[1672614492978,1.661,1201.9,1201.7,9.977]
[1672614499602,1.649,1201.9,1201.7,8.311]
[1672614503903,1.653,1201.9,1201.7,9.975]
[1672614513891,1.666,1201.9,1201.7,8.311]
[1672614524719,1.666,1201.8,1201.6,12.311]
[1672614525032,1.654,1201.7,1201.6,12.311]
[1672614526088,1.654,1201.7,1201.6,3.99551018]
[1672614527137,4.0,1201.6,1201.3,22.294]
[1672614527347,1.653,1201.4,1201.1,13.983]
[1672614527549,5.666,1201.6,1201.1,13.983]
[1672614528292,4.0,1201.5,1201.2,4.0]
[1672614528608,3.325,1201.3,1201.2,4.0]
[1672614539953,1.666,1201.3,1201.2,4.0]
[1672614543104,1.666,1201.3,1201.2,12.311]
[1672614543420,1.659,1201.4,1201.2,12.311]
[1672614552366,1.666,1201.5,1201.2,13.972]
[1672614562138,1.666,1201.5,1201.2,13.977]
[1672614564030,1.666,1201.4,1201.2,13.977]
[1672614583889,1.666,1201.4,1201.2,12.311]
[1672614594086,1.666,1201.5,1201.2,13.977]
[1672614595873,1.666,1201.5,1201.2,13.97214437]
[1672614597239,1.666,1201.5,1201.4,8.311]
[1672614597548,4.656,1201.9,1201.4,11.643]
[1672614597549,1.656,1201.9,1201.4,11.643]
[1672614597869,1.656,1201.9,1201.7,8.311]
[1672614598183,1.656,1201.9,1201.8,11.811]
[1672614599862,1.666,1202.2,1201.8,15.13]
[1672614600074,1.666,1202.2,1202.0,8.311]
[1672614600280,1.666,1202.2,1202.1,3.0]
[1672614600809,1.666,1202.2,1202.1,11.311]
[1672614614160,5.166,1202.6,1202.1,14.628]
[1672614614362,1.666,1202.6,1202.4,8.311]
[1672614615316,1.666,1202.6,1202.5,11.811]
[1672614615525,1.654,1202.7,1202.5,11.811]
[1672614616578,1.664,1202.8,1202.6,9.977]
[1672614616885,1.666,1203.0,1202.7,9.973]
[1672614617098,4.37271412,1203.1,1202.9,8.311]
[1672614617310,2.70771412,1203.1,1203.0,11.311]
[1672614617940,4.36571412,1203.1,1203.0,8.311]
[1672614618149,4.36571412,1203.1,1202.7,8.311]
[1672614618150,7.85771412,1203.1,1202.7,8.311]
[1672614618360,6.20771412,1203.1,1202.7,8.311]
[1672614618778,3.5,1203.0,1202.7,8.311]
[1672614618988,1.664,1202.8,1202.7,8.311]
[1672614619408,1.664,1202.8,1202.6,8.311]
[1672614619619,1.666,1202.9,1202.7,11.311]
[1672614619822,1.666,1202.8,1202.7,11.311]
[1672614623520,3.32,1202.8,1202.7,11.311]
[1672614632143,1.664,1202.9,1202.7,11.311]
[1672614634275,1.664,1203.0,1202.7,12.971]
[1672614644174,1.653,1202.8,1202.7,11.311]
[1672614646877,1.661,1202.9,1202.7,11.311]
[1672614649182,1.664,1203.0,1202.7,12.959]
[1672614653264,1.65,1202.9,1202.7,11.311]
[1672614660624,3.321,1202.8,1202.7,11.311]
[1672614661037,3.321,1202.8,1202.6,8.311]
[1672614661246,3.321,1202.8,1202.5,11.811]
[1672614661247,1.649,1202.6,1202.5,11.811]
[1672614661461,3.306,1202.6,1202.2,13.983]
[1672614661774,1.648,1202.5,1202.3,3.5]
[1672614662196,1.648,1202.5,1202.4,8.311]
[1672614662411,1.664,1202.5,1202.4,8.311]
[1672614666405,1.664,1202.7,1202.4,9.961]
[1672614666618,1.664,1202.7,1202.6,8.30429217]
[1672614666827,1.648,1202.8,1202.6,8.30429217]
[1672614667557,1.653,1203.0,1202.6,11.60429217]
[1672614668089,1.653,1203.0,1202.8,8.30429217]
[1672614668922,1.651,1202.9,1202.7,11.811]
[1672614675024,1.651,1202.9,1202.5,4.1814]
[1672614675332,1.664,1202.6,1202.5,3.0]
[1672614675539,1.664,1202.6,1202.5,3.5]
[1672614676075,1.664,1202.6,1202.5,11.811]
[1672614683008,3.322,1202.6,1202.5,11.811]
[1672614685942,3.322,1202.6,1202.5,3.5]
[1672614693942,1.647,1202.6,1202.5,3.5]
[1672614695827,1.664,1202.8,1202.5,5.164]
[1672614696147,1.664,1202.8,1202.5,13.475]
[1672614697615,1.657,1202.9,1202.7,8.311]
[1672614698037,1.657,1202.9,1202.8,3.0]
[1672614698245,1.653,1203.2,1202.8,12.975]
[1672614701710,1.659,1203.1,1202.8,11.311]
[1672614706125,1.65,1203.0,1202.8,11.311]
[1672614723898,1.647,1203.0,1202.8,11.311]
[1672614736203,1.647,1203.0,1202.8,11.30822484]
[1672614737674,1.664,1202.9,1202.8,11.30822484]
[1672614740322,1.664,1202.9,1202.8,2.99722484]
[1672614740624,1.664,1202.9,1202.8,3.49722484]
[1672614754182,1.647,1202.9,1202.8,3.49722484]
[1672614757971,3.309,1202.9,1202.6,13.983]
[1672614758180,1.653,1202.7,1202.4,13.983]
[1672614758498,1.664,1202.6,1202.5,3.5]
[1672614758699,1.665,1202.6,1202.5,3.5]
[1672614781000,1.665,1202.6,1202.5,11.811]
[1672614781218,1.658,1202.7,1202.5,11.811]
[1672614791932,1.653,1202.6,1202.5,11.811]
[1672614827476,1.653,1202.6,1202.5,11.80877744]
[1672614833990,1.662,1202.6,1202.5,11.80877744]
[1672614844194,1.659,1202.6,1202.5,11.80877744]
[1672614859856,1.665,1202.9,1202.6,1.656]
[1672614860066,1.665,1202.9,1202.7,1.665]
[1672614861857,1.665,1202.9,1202.7,9.976]
[1672614885828,1.665,1202.9,1202.7,1.665]
[1672614886041,1.5,1203.0,1202.6,1.656]
[1672614886042,1.665,1202.8,1202.6,1.656]
[1672614886353,1.665,1202.7,1202.5,13.47077744]
[1672614894345,1.665,1202.6,1202.5,3.49777744]
[1672614894547,1.665,1202.6,1202.5,3.49175107]
[1672614902640,1.665,1202.6,1202.5,11.80275107]
[1672614902850,1.663,1202.7,1202.5,11.80275107]
[1672614906745,1.65713731,1202.7,1202.5,11.80275107]
[1672614923981,1.665,1202.7,1202.5,11.80275107]
[1672614949949,1.665,1202.8,1202.5,13.45975107]
[1672614950263,1.652,1202.9,1202.6,9.973]
[1672614961503,1.659,1202.8,1202.6,8.311]
[1672614971804,1.659,1202.8,1202.5,5.15375107]
[1672614972115,1.659,1202.8,1202.5,5.14856176]
[1672614973902,1.653,1202.8,1202.5,5.15156176]
[1672615002600,1.653,1202.8,1202.6,8.311]
[1672615013950,1.659,1202.8,1202.6,8.311]
[1672615028988,1.65166659,1202.8,1202.6,8.311]
[1672615034653,1.654,1202.7,1202.5,3.48656176]
[1672615034869,1.659,1202.6,1202.5,3.48656176]
[1672615036868,1.659,1202.6,1202.5,11.79756176]
[1672615040341,1.659,1202.6,1202.5,3.48656176]
[1672615059265,1.665,1202.7,1202.5,11.79756176]
[1672615059474,1.65166659,1202.8,1202.5,13.44756176]
[1672615073875,1.665,1202.6,1202.5,3.48656176]
[1672615083433,3.33,1202.6,1202.2,15.645]
[1672615083645,1.651,1202.4,1202.1,1.665]
[1672615083854,1.651,1202.4,1202.2,3.5]
[1672615085841,1.651,1202.4,1202.1,4.665]
[1672615085842,4.98,1202.3,1202.1,3.0]
[1672615086055,3.304,1202.2,1202.1,3.0]
[1672615095515,3.304,1202.2,1202.1,2.91681572]
[1672615095833,3.304,1202.2,1202.1,2.86690514]
[1672615150386,11.623,1202.2,1201.9,3.0]
[1672615150589,3.317,1202.0,1201.9,3.0]
[1672615175087,3.317,1202.0,1201.9,2.99327556]
[1672615184533,11.628,1202.0,1201.9,2.99327556]
[1672615184962,3.317,1202.0,1201.9,2.99327556]
[1672615199042,1.665,1202.2,1201.9,4.65827556]
[1672615199257,1.653,1202.3,1202.0,1.665]
[1672615199670,1.653,1202.3,1202.1,0.5]
[1672615213968,1.659,1202.2,1202.1,0.5]
[1672615230993,1.657,1202.4,1202.1,2.157]
[1672615231200,1.665,1202.5,1202.2,1.66]
[1672615231729,1.665,1202.5,1202.3,3.0]
[1672615253917,1.665,1202.5,1202.3,4.653]
[1672615254647,1.665,1202.4,1202.3,2.99688549]
[1672615266419,1.654,1202.5,1202.3,4.64988549]
[1672615267376,1.654,1202.5,1202.3,12.96088549]
[1672615284093,3.318,1202.6,1202.3,12.96788549]
[1672615284414,1.665,1202.5,1202.3,2.99688549]
[1672615291147,1.659,1202.4,1202.3,2.99688549]
[1672615300718,1.65178182,1202.4,1202.3,2.99688549]
[1672615364108,1.665,1202.4,1202.3,2.99688549]
[1672615372928,1.665,1202.4,1202.3,2.98982622]
[1672615404873,1.655,1202.4,1202.3,2.98982622]
[1672615405086,1.6505224,1202.4,1202.3,2.98982622]
[1672615421589,1.6505224,1202.4,1202.1,0.5]
[1672615421800,3.33,1202.2,1202.0,13.983]
[1672615422010,9.981,1202.2,1202.0,13.983]
[1672615422326,9.981,1202.2,1201.8,3.0]
[1672615422327,3.0,1202.1,1201.8,3.0]
[1672615422958,1.652,1201.9,1201.8,3.0]
[1672615431679,1.665,1202.0,1201.8,3.0]
[1672615483087,1.665,1202.0,1201.8,2.99685579]
[1672615496437,1.665,1201.9,1201.8,2.99685579]
[1672615496746,1.655,1201.9,1201.8,2.99685579]
[1672615498952,3.314,1201.9,1201.8,2.99685579]
[1672615501888,11.63,1201.9,1201.8,2.99685579]
[1672615502093,13.295,1201.9,1201.7,3.0]
[1672615502310,6.313,1201.8,1201.7,3.0]
[1672615502624,11.629,1201.8,1201.7,3.0]
[1672615503040,11.629,1201.8,1201.6,3.0]
[1672615503261,3.328,1201.7,1201.6,3.0]
[1672615518495,3.328,1201.7,1201.4,3.0]
[1672615518713,3.317,1201.5,1201.4,3.0]
[1672615518916,4.969,1201.5,1201.4,3.0]
[1672615519233,16.285,1201.5,1201.4,3.0]
[1672615519549,13.285,1201.5,1201.2,3.0]
[1672615519762,1.665,1201.3,1201.2,3.0]
[1672615522278,1.655,1201.3,1201.2,3.0]
[1672615523743,3.307,1201.3,1201.1,3.0]
[1672615524069,4.995,1201.2,1201.0,3.0]
[1672615524280,3.309,1201.1,1201.0,3.0]
[1672615526172,3.309,1201.1,1200.9,69.05]
[1672615526173,13.29,1201.1,1200.9,69.05]
[1672615526389,1.665,1200.9,1200.7,13.983]
[1672615526700,1.662,1200.8,1200.7,13.983]
[1672615526915,1.665,1200.7,1200.6,0.002]
[1672615527117,3.32,1200.7,1200.6,0.002]
[1672615540161,11.636,1200.7,1200.6,0.002]
[1672615540367,13.287,1200.7,1200.6,0.002]
[1672615542787,11.636,1200.7,1200.6,0.002]
[1672615544045,3.32,1200.7,1200.6,0.002]
[1672615548982,1.665,1200.8,1200.6,1.667]
[1672615549198,1.665,1200.9,1200.7,1.665]
[1672615550151,1.665,1200.8,1200.6,0.002]
[1672615557090,1.655,1200.8,1200.6,0.002]
[1672615561290,0.00259175,1200.6,1200.5,3.0]
[1672615568656,0.00259175,1200.6,1200.5,11.316]
[1672615593993,0.00259175,1200.6,1200.5,12.981]
[1672615603984,0.00259175,1200.6,1200.5,11.316]
[1672615604304,0.00259175,1200.6,1200.5,3.0]
[1672615621854,0.00259175,1200.6,1200.5,4.666]
[1672615629946,0.00259175,1200.6,1200.5,4.65964151]
[1672615641610,1.66959175,1200.6,1200.5,2.99364151]
[1672615648650,1.667,1200.6,1200.5,2.99364151]
[1672615649482,1.667,1200.6,1200.5,11.30964151]
[1672615649699,1.65,1200.8,1200.5,12.96564151]
[1672615654430,1.65,1200.8,1200.5,2.99364151]
[1672615654431,1.652,1200.7,1200.5,2.99364151]
[1672615666419,1.652,1200.7,1200.5,11.30964151]
[1672615688495,8.48860193,1201.1,1200.6,11.636]
[1672615688814,6.82160193,1201.1,1200.9,1.652]
[1672615689026,6.82160193,1201.1,1201.0,2.0]
[1672615689446,8.47360193,1201.1,1200.7,9.983]
[1672615689755,8.47360193,1201.1,1200.8,2.0]
[1672615689756,1.667,1201.0,1200.8,2.0]
[1672615707833,1.655,1201.0,1200.8,10.316]
[1672615724122,1.667,1201.1,1200.8,10.316]
[1672615724545,1.667,1201.1,1200.9,3.0]
[1672615732523,8.48860193,1201.1,1200.9,3.0]
[1672615733996,1.665,1201.0,1200.9,3.0]
[1672615739561,6.32,1201.0,1200.7,11.316]
[1672615739773,1.667,1200.8,1200.7,11.316]
[1672615744077,1.667,1200.8,1200.7,3.0]
[1672615754171,1.664,1200.9,1200.7,3.0]
[1672615763959,1.659,1200.8,1200.7,3.0]
[1672615791270,1.659,1200.8,1200.6,3.0]
[1672615791588,1.667,1200.6,1200.4,13.983]
[1672615791905,1.667,1200.5,1200.1,15.645]
[1672615792214,1.667,1200.5,1200.2,3.0]
[1672615792426,1.667,1200.5,1200.3,8.316]
[1672615792637,1.667,1200.5,1200.4,3.0]
[1672615794317,1.667,1200.7,1200.4,11.316]
[1672615800731,1.667,1200.7,1200.4,12.971]
[1672615800947,1.665,1200.8,1200.7,2.0]